bitfinex/quotes_BTCUSD_20241110
["timestamp","ask_amount","ask_price","bid_price","bid_amount"]
[1731258674499,0.56321774,79689.0,79688.0,0.07964]
[1731258674709,0.56457688,79689.0,79688.0,0.07964]
[1731258678096,0.47317721,79689.0,79688.0,0.07964]
[1731258678640,0.46946977,79689.0,79688.0,0.07964]
[1731258678840,0.47317721,79689.0,79688.0,0.07964]
[1731258679073,0.39606733,79689.0,79688.0,0.12594]
[1731258681091,0.39235989,79689.0,79688.0,0.12594]
[1731258681262,0.39606733,79689.0,79688.0,0.12594]
[1731258682667,0.26922119,79689.0,79688.0,0.12594]
[1731258682868,0.27058033,79689.0,79688.0,0.12594]
[1731258683115,0.04093068,79689.0,79688.0,0.12594]
[1731258683449,0.0018823,79697.0,79690.0,0.0463]
[1731258683659,0.0018823,79697.0,79689.0,0.0788]
[1731258683660,0.0018823,79697.0,79692.0,0.0463]
[1731258683778,0.0018823,79697.0,79694.0,0.0463]
[1731258683978,0.0018823,79697.0,79696.0,0.0463]
[1731258684228,0.0018823,79697.0,79696.0,0.1251]
[1731258685262,0.04181127,79698.0,79697.0,0.0788]
[1731258685474,0.10168,79704.0,79697.0,0.0788]
[1731258685685,0.1,79702.0,79697.0,0.0788]
[1731258685897,0.00168,79704.0,79699.0,0.0788]
[1731258686064,0.00168,79704.0,79703.0,0.0046517]
[1731258686266,0.00168,79704.0,79703.0,0.1297517]
[1731258686462,0.00168,79704.0,79703.0,0.13994393]
[1731258686661,0.00168,79704.0,79703.0,0.13839256]
[1731258687465,0.18833456,79716.0,79713.0,0.1277517]
[1731258687714,0.18833456,79716.0,79714.0,0.0788]
[1731258688079,0.00188189,79722.0,79714.0,0.0788]
[1731258688825,0.04120721,79720.0,79714.0,0.0788]
[1731258689039,0.12594221,79717.0,79714.0,0.0788]
[1731258689678,0.125446,79715.0,79714.0,0.0788]
[1731258689881,0.25138821,79715.0,79714.0,0.0788]
[1731258690089,0.12594221,79715.0,79714.0,0.0788]
[1731258690306,0.25138821,79715.0,79714.0,0.0788]
[1731258691851,0.24893059,79715.0,79714.0,0.0788]
[1731258692724,0.36493797,79715.0,79714.0,0.0788]
[1731258692940,0.1,79714.0,79706.0,0.0773]
[1731258693181,0.125457,79709.0,79706.0,0.0773]
[1731258693404,0.24194959,79708.0,79706.0,0.0773]
[1731258693616,0.12594221,79708.0,79706.0,0.0773]
[1731258694041,0.25140021,79708.0,79706.0,0.0773]
[1731258694693,0.125459,79707.0,79706.0,0.0773]
[1731258694898,0.25140121,79707.0,79706.0,0.0773]
[1731258695590,0.376402,79702.0,79701.0,0.0773]
[1731258695812,0.50234421,79702.0,79701.0,0.0773]
[1731258696452,0.1,79717.0,79702.0,0.0498]
[1731258696663,0.31427677,79716.0,79710.0,0.002]
[1731258696900,0.31427677,79716.0,79715.0,0.125446]
[1731258697153,0.04369468,79718.0,79712.0,0.0026517]
[1731258697413,0.00168,79718.0,79717.0,0.175243]
[1731258698681,0.00168,79718.0,79717.0,0.177243]
[1731258699514,0.00168,79718.0,79717.0,0.175243]
[1731258705623,0.00168,79718.0,79717.0,0.17888386]
[1731258707843,0.00168,79718.0,79717.0,0.10448886]
[1731258708053,0.00168,79718.0,79717.0,0.05344086]
[1731258708464,0.00168,79718.0,79717.0,0.17888386]
[1731258711106,0.00168,79718.0,79717.0,0.05344086]
[1731258711311,0.24362959,79718.0,79714.0,0.00084]
[1731258711509,0.125446,79715.0,79714.0,0.00084]
[1731258711733,0.25138821,79715.0,79714.0,0.00084]
[1731258712317,0.25119845,79715.0,79714.0,0.00084]
[1731258712978,0.28124365,79715.0,79714.0,0.00084]
[1731258713194,0.25119845,79715.0,79714.0,0.00084]
[1731258715944,0.35119845,79715.0,79714.0,0.00084]
[1731258716649,0.42654615,79715.0,79714.0,0.00084]
[1731258717300,0.48015359,79715.0,79714.0,0.00084]
[1731258717735,0.6060958,79715.0,79714.0,0.00084]
[1731258720246,0.48015359,79715.0,79714.0,0.00084]
[1731258723189,0.35490589,79715.0,79714.0,0.00084]
[1731258724406,0.35363784,79715.0,79714.0,0.00084]
[1731258729034,0.43287656,79715.0,79714.0,0.00084]
[1731258733161,0.35363784,79715.0,79714.0,0.00084]
[1731258734202,0.35531784,79715.0,79714.0,0.00084]
[1731258734579,0.53471376,79715.0,79714.0,0.00084]
[1731258735796,0.58031376,79715.0,79714.0,0.00084]
[1731258739849,1.27861376,79715.0,79714.0,0.00084]
[1731258740463,1.35931376,79715.0,79714.0,0.00084]
[1731258742883,1.25782435,79715.0,79714.0,0.00084]
[1731258743196,1.17712435,79715.0,79714.0,0.00084]
[1731258744713,0.125475,79697.0,79696.0,0.0793]
[1731258744890,0.25141721,79697.0,79696.0,0.0793]
[1731258745462,0.12594221,79697.0,79696.0,0.250976]
[1731258746290,0.12594221,79697.0,79696.0,0.252976]
[1731258746945,0.12594221,79697.0,79696.0,0.250976]
[1731258747403,0.125466,79703.0,79698.0,0.0793]
[1731258747616,0.12594221,79702.0,79698.0,0.0793]
[1731258748180,0.12594221,79702.0,79698.0,0.204772]
[1731258749823,0.125469,79701.0,79698.0,0.0793]
[1731258749941,0.12594221,79700.0,79698.0,0.0793]
[1731258750705,0.12594221,79700.0,79698.0,0.204773]
[1731258750905,0.12594221,79700.0,79698.0,0.0793]
[1731258751877,0.12594221,79700.0,79698.0,0.204772]
[1731258752678,0.12594221,79700.0,79699.0,0.125472]
[1731258752883,0.12594221,79700.0,79698.0,0.0793]
[1731258753083,0.12594221,79700.0,79698.0,0.204773]
[1731258754627,0.12594221,79700.0,79698.0,1.214773]
[1731258756152,0.25141221,79700.0,79698.0,1.0893]
[1731258756372,0.12594221,79700.0,79698.0,1.0893]
[1731258757249,0.12594221,79700.0,79698.0,1.09014]
[1731258758097,0.12594221,79700.0,79698.0,1.215613]
[1731258758315,0.12594221,79700.0,79698.0,1.09014]
[1731258759767,0.12594221,79700.0,79698.0,1.215613]
[1731258760359,0.12594221,79700.0,79698.0,1.09014]
[1731258760773,0.125472,79699.0,79698.0,1.09014]
[1731258761024,0.25141421,79699.0,79698.0,1.09014]
[1731258761550,0.12594221,79699.0,79698.0,1.09014]
[1731258762819,0.25141421,79699.0,79698.0,1.09014]
[1731258763672,0.12594221,79699.0,79698.0,1.09014]
[1731258768485,0.25141421,79699.0,79698.0,1.09014]
[1731258768697,0.12594221,79699.0,79698.0,1.09014]
[1731258772829,0.25141421,79699.0,79698.0,1.09014]
[1731258773453,0.25141421,79699.0,79698.0,1.01084]
[1731258774462,0.32752486,79699.0,79698.0,1.01084]
[1731258774633,0.52455569,79699.0,79698.0,1.01084]
[1731258774843,0.62455569,79699.0,79698.0,1.01084]
[1731258775780,1.32285569,79699.0,79698.0,1.01084]
[1731258776034,1.36199808,79699.0,79698.0,1.01084]
[1731258776234,1.32285569,79699.0,79698.0,1.00584]
[1731258778130,1.24674504,79699.0,79698.0,1.00584]
[1731258778740,1.32285569,79699.0,79698.0,1.00584]
[1731258778939,1.24674504,79699.0,79698.0,1.00584]
[1731258779475,1.25045248,79699.0,79698.0,1.00584]
[1731258780547,1.20309334,79699.0,79698.0,1.00584]
[1731258780777,1.12817316,79699.0,79698.0,1.00584]
[1731258781409,0.42987316,79699.0,79698.0,1.00584]
[1731258781615,0.55581537,79699.0,79698.0,1.00584]
[1731258781824,0.63192602,79699.0,79698.0,1.00584]
[1731258782028,0.50598381,79699.0,79698.0,1.00584]
[1731258782239,0.50582065,79699.0,79698.0,1.00584]
[1731258782508,0.5819313,79699.0,79698.0,1.00584]
[1731258782712,0.50582065,79699.0,79698.0,1.00584]
[1731258782916,0.54572643,79699.0,79698.0,1.00584]
[1731258783441,0.54337813,79699.0,79698.0,1.00584]
[1731258784554,0.57243091,79699.0,79698.0,1.00584]
[1731258785561,0.62103091,79699.0,79698.0,1.00584]
[1731258785769,0.62473835,79699.0,79698.0,1.00584]
[1731258786205,0.47966914,79699.0,79698.0,1.00584]
[1731258786409,0.43106914,79699.0,79698.0,1.00584]
[1731258787435,0.43106914,79699.0,79698.0,1.08754]
[1731258787637,0.43106914,79699.0,79698.0,1.00584]
[1731258791546,0.42872084,79699.0,79698.0,1.00584]
[1731258793100,0.35277335,79699.0,79698.0,1.00584]
[1731258793497,0.35445335,79699.0,79698.0,1.00584]
[1731258794398,0.35309421,79699.0,79698.0,1.00584]
[1731258794581,0.35445335,79699.0,79698.0,1.00584]
[1731258795003,0.22762221,79699.0,79698.0,1.213013]
[1731258797713,0.12762221,79699.0,79698.0,1.213013]
[1731258799137,0.12762221,79699.0,79698.0,1.08754]
[1731258800902,0.25309421,79699.0,79698.0,1.08754]
[1731258801110,0.12762221,79699.0,79698.0,1.08754]
[1731258805243,0.25309421,79699.0,79698.0,1.08754]
[1731258805444,0.12762221,79699.0,79698.0,1.08754]
[1731258806072,0.34029492,79699.0,79698.0,1.08754]
[1731258806274,0.25309421,79699.0,79698.0,1.08754]
[1731258807275,0.25309421,79699.0,79698.0,1.08739457]
[1731258808730,0.25309421,79699.0,79698.0,1.00569457]
[1731258810765,0.32920523,79699.0,79698.0,1.00569457]
[1731258810971,0.55617334,79699.0,79698.0,1.00569457]
[1731258811227,1.38412299,79699.0,79698.0,0.9586072]
[1731258811402,1.38412299,79699.0,79698.0,0.81447494]
[1731258811403,1.40712299,79699.0,79698.0,0.81447494]
[1731258811615,1.40712299,79699.0,79698.0,0.65901297]
[1731258811817,1.40712299,79699.0,79698.0,0.64701297]
[1731258812834,1.33101197,79699.0,79698.0,0.64701297]
[1731258813031,1.44705742,79699.0,79698.0,0.64701297]
[1731258815402,1.32111521,79699.0,79698.0,0.64701297]
[1731258819961,1.13276976,79699.0,79698.0,0.64701297]
[1731258820400,1.12906232,79699.0,79698.0,0.64701297]
[1731258820628,1.13276976,79699.0,79698.0,0.64701297]
[1731258822705,0.43446976,79699.0,79698.0,0.64701297]
[1731258826868,0.50646976,79699.0,79698.0,0.64701297]
[1731258827631,0.50646976,79699.0,79698.0,0.61700016]
[1731258828648,1.20476976,79699.0,79698.0,0.61700016]
[1731258831186,0.125487,79689.0,79688.0,0.00084]
[1731258831502,0.61140893,79689.0,79688.0,0.00084]
[1731258833280,0.56490893,79689.0,79688.0,0.00084]
[1731258834625,1.26320893,79689.0,79688.0,0.00084]
[1731258834831,1.30451711,79689.0,79688.0,0.00084]
[1731258836866,1.26462473,79689.0,79688.0,0.00084]
[1731258863363,1.25962473,79689.0,79688.0,0.00084]
[1731258864600,1.30899543,79689.0,79688.0,0.00084]
[1731258865010,1.25962473,79689.0,79688.0,0.00084]
[1731258878764,1.29878475,79689.0,79688.0,0.00084]
[1731258879398,1.37493782,79689.0,79688.0,0.00084]
[1731258879619,1.34778475,79689.0,79688.0,0.00084]
[1731258883464,1.34778475,79689.0,79688.0,0.00069486]
[1731258885340,1.30862473,79689.0,79688.0,0.00069486]
[1731258885718,1.25962473,79689.0,79688.0,0.00069486]
[1731258887797,1.26130473,79689.0,79688.0,0.00069486]
[1731258890342,1.23830473,79689.0,79688.0,0.00069486]
[1731258891565,1.16215166,79689.0,79688.0,0.00069486]
[1731258891771,1.15215166,79689.0,79688.0,0.07589486]
[1731258891998,1.07771739,79689.0,79688.0,0.12149486]
[1731258893809,0.37941739,79689.0,79688.0,0.12149486]
[1731258901402,0.37941739,79689.0,79688.0,0.00069486]
[1731258901403,0.45662544,79689.0,79688.0,0.00069486]
[1731258903025,0.53277851,79689.0,79688.0,0.00069486]
[1731258905028,0.57877851,79689.0,79688.0,0.00069486]
[1731258905695,1.27707851,79689.0,79688.0,0.00069486]
[1731258906332,1.40302072,79689.0,79688.0,0.00069486]
[1731258906780,1.35323158,79689.0,79688.0,0.00069486]
[1731258906927,1.37623158,79689.0,79688.0,0.00069486]
[1731258907331,1.30007851,79689.0,79688.0,0.00069486]
[1731258909223,1.3391809,79689.0,79688.0,0.00069486]
[1731258910523,1.30007851,79689.0,79688.0,0.00069486]
[1731258910727,1.46511071,79689.0,79688.0,0.00069486]
[1731258910948,1.3391685,79689.0,79688.0,0.00069486]
[1731258911137,1.30007851,79689.0,79688.0,0.00069486]
[1731258911346,1.41531812,79689.0,79688.0,0.00069486]
[1731258911799,1.33916505,79689.0,79688.0,0.00069486]
[1731258912326,1.41531812,79689.0,79688.0,0.00069486]
[1731258912469,1.33916505,79689.0,79688.0,0.00069486]
[1731258912676,1.41531812,79689.0,79688.0,0.00069486]
[1731258913077,1.15492544,79689.0,79688.0,0.00069486]
[1731258913283,1.15492544,79689.0,79688.0,0.08259486]
[1731258924779,1.15492544,79689.0,79688.0,0.08245001]
[1731258928572,0.94443844,79689.0,79688.0,0.13135001]
[1731258928783,0.86723039,79689.0,79688.0,0.13135001]
[1731258928985,0.86723039,79689.0,79688.0,0.25683901]
[1731258929195,0.86723039,79689.0,79688.0,0.26047987]
[1731258929359,0.12762221,79689.0,79688.0,0.26047987]
[1731258929518,0.12762221,79689.0,79688.0,0.26313157]
[1731258929736,0.12762221,79689.0,79688.0,0.26513157]
[1731258931093,0.6983,79694.0,79693.0,0.25672186]
[1731258931361,0.31548656,79699.0,79693.0,0.25672186]
[1731258931362,0.19001456,79699.0,79695.0,0.0787]
[1731258931568,0.12594221,79697.0,79696.0,0.0787]
[1731258932703,0.12594221,79697.0,79696.0,0.204176]
[1731258932903,0.12594221,79697.0,79696.0,0.0787]
[1731258933426,0.25141721,79697.0,79696.0,0.0787]
[1731258934240,0.25309721,79697.0,79696.0,0.0787]
[1731258938314,0.25309721,79697.0,79688.0,0.00055001]
[1731258938315,0.125487,79689.0,79688.0,0.00055001]
[1731258938529,0.40701047,79689.0,79688.0,0.00055001]
[1731258940399,0.40701047,79689.0,79688.0,0.00419087]
[1731258942886,0.40701047,79689.0,79688.0,0.00055001]
[1731258943043,0.40701047,79689.0,79688.0,0.00419087]
[1731258945208,0.44724633,79689.0,79688.0,0.00419087]
[1731258945379,0.44724633,79689.0,79688.0,0.00055001]
[1731258945806,0.44724633,79689.0,79688.0,0.00419087]
[1731258946684,0.44724633,79689.0,79688.0,0.00055001]
[1731258947459,0.44724633,79689.0,79688.0,0.00419087]
[1731258954392,0.44724633,79689.0,79688.0,0.00055001]
[1731258956249,0.44724633,79689.0,79688.0,0.00419087]
[1731258957608,0.44724633,79689.0,79688.0,0.00055001]
[1731258958011,0.44892633,79689.0,79688.0,0.00055001]
[1731258958418,0.44892633,79689.0,79688.0,0.00419087]
[1731258959231,0.44892633,79689.0,79688.0,0.00055001]
[1731258959589,0.44892633,79689.0,79688.0,0.00040549]
[1731258959987,0.49872633,79689.0,79688.0,0.00040549]
[1731258961526,0.59872633,79689.0,79688.0,0.00040549]
[1731258965038,1.29702633,79689.0,79688.0,0.00040549]
[1731258973489,1.17153933,79689.0,79688.0,0.00040549]
[1731258974283,1.29702633,79689.0,79688.0,0.00040549]
[1731258977623,1.3731794,79689.0,79688.0,0.00040549]
[1731258980567,1.29702633,79689.0,79688.0,0.00040549]
[1731258981470,1.3731794,79689.0,79688.0,0.00040549]
[1731258982834,1.29702633,79689.0,79688.0,0.00040549]
[1731258983310,1.29702633,79689.0,79679.0,0.075]
[1731258983311,0.0476,79671.0,79665.0,0.00364086]
[1731258983434,0.251041,79668.0,79665.0,0.00364086]
[1731258983635,0.27783014,79666.0,79665.0,0.00364086]
[1731258983943,0.35525276,79666.0,79665.0,0.00364086]
[1731258984145,0.15357569,79666.0,79661.0,0.00364086]
[1731258984357,0.251072,79659.0,79656.0,0.00142]
[1731258984540,0.20169107,79657.0,79656.0,0.00142]
[1731258984742,0.41403814,79657.0,79656.0,0.00142]
[1731258987473,0.45493642,79657.0,79656.0,0.00142]
[1731258987764,1.22938949,79657.0,79656.0,0.00142]
[1731258988035,1.32938949,79657.0,79656.0,0.00142]
[1731258988991,1.35238949,79657.0,79656.0,0.00142]
[1731258989694,1.27623642,79657.0,79656.0,0.00142]
[1731258990145,1.35238949,79657.0,79656.0,0.00142]
[1731258990349,1.27623642,79657.0,79656.0,0.00142]
[1731258990587,1.35238949,79657.0,79656.0,0.00142]
[1731258991009,1.35238949,79657.0,79656.0,0.00127573]
[1731258991209,1.38143093,79657.0,79656.0,0.00127573]
[1731258991413,1.35238949,79657.0,79656.0,0.00127573]
[1731258993438,2.85238949,79657.0,79656.0,0.00127573]
[1731258993641,1.35238949,79657.0,79656.0,0.00127573]
[1731258996621,1.27623642,79657.0,79656.0,0.00127573]
[1731258998741,1.17708335,79657.0,79656.0,0.00127573]
[1731258999482,1.17708335,79657.0,79656.0,0.26125559]
[1731258999483,0.95154535,79657.0,79656.0,0.26125559]
[1731258999664,0.12594221,79657.0,79656.0,0.26125559]
[1731258999920,0.12594221,79657.0,79656.0,0.13571659]
[1731259000788,0.12594221,79657.0,79656.0,0.26125559]
[1731259001765,0.18833456,79671.0,79670.0,0.13444086]
[1731259001959,0.31427677,79671.0,79670.0,0.13444086]
[1731259002169,0.12594221,79671.0,79670.0,0.13444086]
[1731259005640,0.12762221,79671.0,79670.0,0.13444086]
[1731259010602,0.25313821,79671.0,79670.0,0.13444086]
[1731259010762,0.25313821,79671.0,79670.0,0.08524086]
[1731259011178,0.12762221,79671.0,79670.0,0.08524086]
[1731259011553,0.25313821,79671.0,79670.0,0.08524086]
[1731259015970,0.25313821,79671.0,79670.0,0.00629256]
[1731259016136,0.125525,79665.0,79664.0,0.00364086]
[1731259016365,0.44369839,79665.0,79664.0,0.00364086]
[1731259016642,0.44369839,79665.0,79656.0,0.00127573]
[1731259016643,0.125528,79663.0,79662.0,0.00364086]
[1731259016889,0.44370139,79663.0,79662.0,0.00364086]
[1731259019825,0.251072,79659.0,79656.0,0.08047573]
[1731259020025,0.11605972,79657.0,79656.0,0.08047573]
[1731259020204,0.24159772,79657.0,79656.0,0.00127573]
[1731259020384,0.24159772,79657.0,79656.0,0.00491659]
[1731259023196,0.36753993,79657.0,79656.0,0.00491659]
[1731259023523,0.25148021,79657.0,79656.0,0.00491659]
[1731259023942,0.12594221,79657.0,79656.0,0.00691659]
[1731259024160,0.12594221,79657.0,79656.0,0.25875559]
[1731259024388,0.12594221,79657.0,79656.0,0.13321659]
[1731259024594,0.12594221,79657.0,79656.0,0.13121659]
[1731259026427,0.12594221,79657.0,79656.0,0.25675559]
[1731259026853,0.12594221,79657.0,79656.0,0.13121659]
[1731259027088,0.12594221,79657.0,79656.0,0.25875559]
[1731259027314,0.04037672,79663.0,79662.0,0.12917086]
[1731259027536,0.12594221,79663.0,79662.0,0.00353507]
[1731259027757,0.25147021,79663.0,79662.0,0.00353507]
[1731259028813,0.25315021,79663.0,79662.0,0.00353507]
[1731259032275,0.16829033,79663.0,79662.0,0.00353507]
[1731259033640,0.29381833,79663.0,79662.0,0.00353507]
[1731259041100,0.29381833,79663.0,79662.0,0.00437507]
[1731259044572,0.3708465,79663.0,79662.0,0.00437507]
[1731259046196,0.3708465,79663.0,79662.0,0.00427507]
[1731259053712,0.16829033,79663.0,79662.0,0.12980507]
[1731259053934,0.00168,79663.0,79662.0,0.26165677]
[1731259054233,0.00168,79663.0,79662.0,0.26365677]
[1731259062367,0.00168,79663.0,79662.0,0.26356777]
[1731259065820,0.00168,79663.0,79662.0,0.26346777]
[1731259066227,0.00168,79663.0,79662.0,0.26146777]
[1731259067834,0.12762221,79663.0,79662.0,0.20591607]
[1731259070277,0.12762221,79663.0,79662.0,0.20581607]
[1731259071395,0.12762221,79663.0,79662.0,0.08028607]
[1731259071396,0.20378798,79663.0,79662.0,0.08028607]
[1731259071577,0.16965813,79663.0,79662.0,0.20581607]
[1731259072820,0.16965813,79663.0,79662.0,0.08028607]
[1731259074251,0.12762221,79663.0,79662.0,0.20581607]
[1731259074614,0.12762221,79663.0,79662.0,0.20781607]
[1731259075016,0.12762221,79663.0,79662.0,0.08228607]
[1731259075237,0.12762221,79663.0,79662.0,0.08028607]
[1731259076441,0.12762221,79663.0,79662.0,0.20581607]
[1731259078339,0.12762221,79663.0,79662.0,0.08028607]
[1731259081072,0.25315021,79663.0,79662.0,0.00398607]
[1731259082155,0.25315021,79663.0,79662.0,0.00663777]
[1731259082359,0.25315021,79663.0,79662.0,0.00398607]
[1731259082806,0.25315021,79663.0,79662.0,0.00238907]
[1731259092230,0.12762221,79663.0,79662.0,0.20671907]
[1731259092369,0.12762221,79663.0,79662.0,0.20871907]
[1731259092569,0.12762221,79663.0,79662.0,0.21371907]
[1731259092570,0.00168,79663.0,79662.0,0.21371907]
[1731259092774,0.00168,79663.0,79662.0,0.21637077]
[1731259101886,0.00168,79663.0,79662.0,0.20937077]
[1731259104183,0.00168,79663.0,79662.0,0.08384077]
[1731259104382,0.00168,79663.0,79662.0,0.20937077]
[1731259107299,0.00168,79663.0,79662.0,0.08384077]
[1731259107503,0.00168,79663.0,79662.0,0.20937077]
[1731259108167,0.00168,79663.0,79662.0,0.08384077]
[1731259108354,0.00168,79663.0,79662.0,0.20937077]
[1731259108581,0.00168,79663.0,79662.0,0.08384077]
[1731259108994,0.00168,79663.0,79662.0,0.20937077]
[1731259110065,0.00168,79663.0,79662.0,0.00238907]
[1731259110703,0.00168,79663.0,79662.0,0.12791907]
[1731259110916,0.00168,79663.0,79662.0,0.13057077]
[1731259112786,0.00168,79663.0,79662.0,0.00504077]
[1731259115565,0.00168,79663.0,79662.0,0.13057077]
[1731259116194,0.00168,79663.0,79662.0,0.00504077]
[1731259116604,0.00168,79663.0,79662.0,0.13057077]
[1731259121157,0.0100863,79663.0,79662.0,0.13057077]
[1731259121362,0.00168,79663.0,79662.0,0.13057077]
[1731259121557,0.0100863,79663.0,79662.0,0.13057077]
[1731259121800,0.00168,79663.0,79662.0,0.13057077]
[1731259122030,0.0100863,79663.0,79662.0,0.13057077]
[1731259122232,0.00168,79663.0,79662.0,0.13057077]
[1731259122439,0.0100863,79663.0,79662.0,0.13057077]
[1731259122644,0.00168,79663.0,79662.0,0.13057077]
[1731259122864,0.0100863,79663.0,79662.0,0.13057077]
[1731259123065,0.00168,79663.0,79662.0,0.13057077]
[1731259123272,0.0100863,79663.0,79662.0,0.13057077]
[1731259123475,0.00168,79663.0,79662.0,0.13057077]
[1731259123675,0.0100863,79663.0,79662.0,0.13057077]
[1731259123877,0.00168,79663.0,79662.0,0.13257077]
[1731259124104,0.0100863,79663.0,79662.0,0.13257077]
[1731259124219,0.00168,79663.0,79662.0,0.13257077]
[1731259124423,0.0100863,79663.0,79662.0,0.13257077]
[1731259125872,0.00168,79663.0,79662.0,0.13257077]
[1731259126094,0.0100863,79663.0,79662.0,0.13257077]
[1731259126522,0.0275904,79668.0,79662.0,0.08574077]
[1731259126724,0.12594221,79667.0,79666.0,0.00154907]
[1731259126972,0.12594221,79667.0,79666.0,0.12707307]
[1731259127223,0.12594221,79667.0,79662.0,0.330599]
[1731259127224,0.00168,79671.0,79670.0,0.13171777]
[1731259127480,0.00168,79671.0,79670.0,0.21641417]
[1731259127680,0.00168,79671.0,79670.0,0.29158354]
[1731259128084,0.00168,79671.0,79670.0,0.34558354]
[1731259130066,0.00168,79671.0,79670.0,0.26941777]
[1731259141494,0.16701456,79682.0,79681.0,0.00420077]
[1731259141835,0.29295677,79682.0,79681.0,0.13170077]
[1731259142045,0.12594221,79682.0,79681.0,0.20870077]
[1731259142675,0.04291565,79689.0,79688.0,0.125489]
[1731259142904,0.04291565,79689.0,79688.0,0.1281407]
[1731259142905,0.16885786,79689.0,79688.0,0.1281407]
[1731259143673,0.00168,79689.0,79688.0,0.13668977]
[1731259143889,0.00168,79689.0,79688.0,0.21368977]
[1731259144843,0.00168,79689.0,79688.0,0.26228977]
[1731259149388,0.00168,79689.0,79688.0,0.21368977]
[1731259153123,0.17205456,79699.0,79698.0,0.00154907]
[1731259153328,0.29799677,79699.0,79698.0,0.00154907]
[1731259153463,0.12594221,79699.0,79698.0,0.00154907]
[1731259155284,0.25141421,79699.0,79698.0,0.00154907]
[1731259156534,0.22841421,79699.0,79698.0,0.00154907]
[1731259159942,0.10294221,79699.0,79698.0,0.00154907]
[1731259160530,0.22841421,79699.0,79698.0,0.00154907]
[1731259161332,0.22841421,79699.0,79698.0,0.00354907]
[1731259161531,0.22841421,79699.0,79698.0,0.00154907]
[1731259163108,0.10294221,79699.0,79698.0,0.00154907]
[1731259166157,0.10294221,79699.0,79698.0,0.00238907]
[1731259167108,0.10462221,79699.0,79698.0,0.00238907]
[1731259167308,0.10462221,79699.0,79698.0,0.12786207]
[1731259167746,0.10462221,79699.0,79698.0,0.00238907]
[1731259167962,0.08162221,79699.0,79698.0,0.00238907]
[1731259168582,0.08162221,79699.0,79698.0,0.00504077]
[1731259169395,0.08162221,79699.0,79698.0,0.13051377]
[1731259170260,0.08162221,79699.0,79698.0,0.00504077]
[1731259170463,0.00168,79699.0,79698.0,0.01004077]
[1731259170669,0.00168,79699.0,79698.0,0.21061377]
[1731259171066,0.00168,79699.0,79698.0,0.21261377]
[1731259171553,0.00168,79699.0,79698.0,0.25981377]
[1731259171758,0.01882688,79705.0,79698.0,0.13434077]
[1731259171958,0.18833456,79707.0,79706.0,0.1281127]
[1731259172511,0.04171233,79707.0,79706.0,0.1281127]
[1731259172846,0.1,79710.0,79709.0,0.0026517]
[1731259173192,0.22594221,79710.0,79709.0,0.0026517]
[1731259173489,0.35139621,79710.0,79709.0,0.0026517]
[1731259174876,0.22594221,79710.0,79709.0,0.0026517]
[1731259175276,0.35139621,79710.0,79709.0,0.0026517]
[1731259175901,0.22594221,79710.0,79706.0,0.00154907]
[1731259176128,0.20162477,79707.0,79706.0,0.00420077]
[1731259176999,0.07616577,79707.0,79706.0,0.00420077]
[1731259177601,0.20162477,79707.0,79706.0,0.00420077]
[1731259178707,0.07616577,79707.0,79706.0,0.00420077]
[1731259178821,0.20162477,79707.0,79706.0,0.00420077]
[1731259180422,0.37426698,79707.0,79706.0,0.00420077]
[1731259181400,0.37426698,79707.0,79706.0,0.00154907]
[1731259181854,0.29810121,79707.0,79706.0,0.00154907]
[1731259182040,0.25140121,79707.0,79706.0,0.00154907]
[1731259183024,0.22840121,79707.0,79706.0,0.00154907]
[1731259183430,0.10294221,79707.0,79706.0,0.00154907]
[1731259183669,0.22840121,79707.0,79706.0,0.00154907]
[1731259184210,0.22840121,79707.0,79706.0,0.00354907]
[1731259184338,0.22840121,79707.0,79706.0,0.00154907]
[1731259185248,0.125457,79708.0,79707.0,0.0026517]
[1731259185698,0.10084,79710.0,79707.0,0.0026517]
[1731259185902,0.25139821,79709.0,79708.0,0.0026517]
[1731259186215,0.22594221,79709.0,79708.0,0.0026517]
[1731259186366,0.35139821,79709.0,79708.0,0.0026517]
[1731259186574,0.225456,79709.0,79708.0,0.0026517]
[1731259186984,0.225456,79709.0,79705.0,0.00154907]
[1731259188661,0.125457,79709.0,79705.0,0.00154907]
[1731259189098,0.125457,79709.0,79706.0,0.002]
[1731259189317,0.125457,79709.0,79705.0,0.00154907]
[1731259189527,0.125459,79708.0,79705.0,0.00154907]
[1731259190334,0.226295,79710.0,79706.0,0.002]
[1731259190537,0.125457,79709.0,79705.0,0.00154907]
[1731259190894,0.126297,79709.0,79705.0,0.00154907]
[1731259191102,0.126297,79709.0,79706.0,0.002]
[1731259191479,0.00084,79709.0,79705.0,0.00354907]
[1731259191612,0.00084,79709.0,79706.0,0.002]
[1731259192255,0.126296,79709.0,79706.0,0.002]
[1731259192641,0.00084,79709.0,79707.0,0.0753]
[1731259193862,0.00084,79709.0,79708.0,0.12700607]
[1731259194068,0.00084,79709.0,79708.0,0.25350607]
[1731259194975,0.00084,79709.0,79708.0,0.25514514]
[1731259195392,0.00084,79709.0,79708.0,0.25850607]
[1731259196702,0.00084,79709.0,79708.0,0.26850607]
[1731259196939,0.00084,79709.0,79708.0,0.26650607]
[1731259197135,0.00084,79709.0,79708.0,0.26850607]
[1731259197338,0.00084,79709.0,79708.0,0.26650607]
[1731259197999,0.71027756,79723.0,79722.0,0.12698407]
[1731259198401,0.538223,79723.0,79722.0,0.12698407]
[1731259198816,0.538223,79723.0,79722.0,0.12898407]
[1731259199227,0.538223,79723.0,79722.0,0.12698407]
[1731259199499,0.538223,79723.0,79722.0,0.12898407]
[1731259201760,0.515223,79723.0,79722.0,0.28804984]
[1731259202723,0.515223,79723.0,79722.0,0.21188407]
[1731259205385,0.516063,79723.0,79722.0,0.28804984]
[1731259207072,0.516063,79723.0,79722.0,0.21188407]
[1731259210520,0.516063,79723.0,79722.0,0.12898407]
[1731259212648,0.516063,79723.0,79722.0,0.12698407]
[1731259212907,0.516063,79723.0,79722.0,0.00154907]
[1731259213067,0.493063,79723.0,79722.0,0.00154907]
[1731259213468,0.493063,79723.0,79722.0,0.12698407]
[1731259213651,0.493063,79723.0,79722.0,0.00154907]
[1731259214340,0.493063,79723.0,79722.0,0.12698407]
[1731259215068,0.05215725,79726.0,79722.0,0.00154907]
[1731259215418,0.125428,79727.0,79723.0,0.125433]
[1731259215718,0.125428,79727.0,79726.0,0.00154907]
[1731259216462,0.102428,79727.0,79726.0,0.00154907]
[1731259217748,0.0018818,79731.0,79728.0,0.00154907]
[1731259218047,0.12782401,79731.0,79730.0,0.00154907]
[1731259218557,0.25324501,79731.0,79730.0,0.00154907]
[1731259218963,0.12782401,79731.0,79730.0,0.00154907]